[Event "Titled Tuesday Blitz March 07 Early 2023"]
[White "Sargissyan, Sargis"]
[Black "Mikhailovsky, Vladimir"]
[WhiteFideId "13303210"]
[BlackFideId "34105414"]
[WhiteElo "2109"]
[BlackElo "2293"]
[Result "0-1"]
[Round "01"]
[TimeControl "180+2"]
[Date "2023.03.07"]
[WhiteClock "0:00:07"]
[BlackClock "0:00:15"]

1. e4 {[%clk 0:03:00]}  Nf6 {[%clk 0:02:56]} 2. e5 {[%clk 0:02:59]}  Nd5 {[%clk 0:02:56]} 3. d4 {[%clk 0:02:57]}  d6 {[%clk 0:02:57]} 4. c4 {[%clk 0:02:55]}  Nb6 {[%clk 0:02:56]} 5. exd6 {[%clk 0:02:50]}  exd6 {[%clk 0:02:57]} 6. Nc3 {[%clk 0:02:50]}  Be7 {[%clk 0:02:58]} 7. Nf3 {[%clk 0:02:48]}  O-O {[%clk 0:02:58]} 8. h3 {[%clk 0:02:49]}  Nc6 {[%clk 0:02:57]} 9. Be2 {[%clk 0:02:26]}  Bf5 {[%clk 0:02:54]} 10. O-O {[%clk 0:02:26]}  Bf6 {[%clk 0:02:51]} 11. b3 {[%clk 0:02:12]}  Re8 {[%clk 0:02:46]} 12. Be3 {[%clk 0:01:55]}  h6 {[%clk 0:02:43]} 13. Qd2 {[%clk 0:01:55]}  d5 {[%clk 0:02:32]} 14. c5 {[%clk 0:01:53]}  Nc8 {[%clk 0:02:32]} 15. a3 {[%clk 0:01:45]}  N8e7 {[%clk 0:02:28]} 16. b4 {[%clk 0:01:44]}  a6 {[%clk 0:02:29]} 17. Bd3 {[%clk 0:01:14]}  Qd7 {[%clk 0:02:26]} 18. Rfe1 {[%clk 0:01:14]}  Bxd3 {[%clk 0:02:14]} 19. Qxd3 {[%clk 0:01:15]}  Nf5 {[%clk 0:02:15]} 20. Re2 {[%clk 0:01:09]}  Re7 {[%clk 0:02:12]} 21. Rae1 {[%clk 0:01:09]}  Rae8 {[%clk 0:02:13]} 22. g4 {[%clk 0:00:55]}  Nh4 {[%clk 0:01:30]} 23. Nxh4 {[%clk 0:00:54]}  Bxh4 {[%clk 0:01:31]} 24. Bf4 {[%clk 0:00:51]}  Rxe2 {[%clk 0:01:26]} 25. Rxe2 {[%clk 0:00:51]}  Rxe2 {[%clk 0:01:27]} 26. Nxe2 {[%clk 0:00:50]}  Ne7 {[%clk 0:01:10]} 27. Ng3 {[%clk 0:00:33]}  Ng6 {[%clk 0:01:04]} 28. Be3 {[%clk 0:00:33]}  Bxg3 {[%clk 0:01:02]} 29. fxg3 {[%clk 0:00:32]}  c6 {[%clk 0:00:57]} 30. Qf5 {[%clk 0:00:18]}  Qe8 {[%clk 0:00:56]} 31. Kf2 {[%clk 0:00:18]}  Nf8 {[%clk 0:00:55]} 32. Bf4 {[%clk 0:00:16]}  Nh7 {[%clk 0:00:52]} 33. h4 {[%clk 0:00:12]}  Nf6 {[%clk 0:00:52]} 34. Be5 {[%clk 0:00:13]}  Ne4+ {[%clk 0:00:50]} 35. Kg2 {[%clk 0:00:14]}  f6 {[%clk 0:00:46]} 36. Bf4 {[%clk 0:00:14]}  Nc3 {[%clk 0:00:45]} 37. Qd3 {[%clk 0:00:12]}  Qe4+ {[%clk 0:00:18]} 38. Qxe4 {[%clk 0:00:13]}  dxe4 {[%clk 0:00:19]} 39. Kf2 {[%clk 0:00:13]}  Nd5 {[%clk 0:00:18]} 40. Bd2 {[%clk 0:00:11]}  Kf7 {[%clk 0:00:18]} 41. h5 {[%clk 0:00:11]}  Ke6 {[%clk 0:00:18]} 42. Ke2 {[%clk 0:00:12]}  Nc7 {[%clk 0:00:16]} 43. Ke3 {[%clk 0:00:11]}  Kd5 {[%clk 0:00:17]} 44. Be1 {[%clk 0:00:11]}  Nb5 {[%clk 0:00:17]} 45. Kf4 {[%clk 0:00:06]}  Nxd4 {[%clk 0:00:17]} 46. Bf2 {[%clk 0:00:07]}  Nc2 {[%clk 0:00:12]} 47. Kf5 {[%clk 0:00:07]}  e3 {[%clk 0:00:12]} 48. Bxe3 {[%clk 0:00:07]}  Nxe3+ {[%clk 0:00:13]} 49. Kg6 {[%clk 0:00:07]}  Nxg4 {[%clk 0:00:13]} 50. Kxg7 {[%clk 0:00:08]}  Ke4 {[%clk 0:00:14]} 51. Kg6 {[%clk 0:00:07]}  Kf3 {[%clk 0:00:15]} 0-1


[Site "https://www.chess.com"]

[Event "Titled Tuesday Blitz March 07 Early 2023"]
[White "Boyer, Mahel"]
[Black "Hajiyev, Kanan"]
[WhiteFideId "45102422"]
[BlackFideId "13404148"]
[WhiteElo "2439"]
[BlackElo "2103"]
[Result "1-0"]
[Round "01"]
[TimeControl "180+2"]
[Date "2023.03.07"]
[WhiteClock "0:00:08"]
[BlackClock "0:00:02"]

1. e4 {[%clk 0:03:00]}  c6 {[%clk 0:02:58]} 2. d4 {[%clk 0:02:56]}  d5 {[%clk 0:02:59]} 3. e5 {[%clk 0:02:55]}  a6 {[%clk 0:02:58]} 4. c4 {[%clk 0:02:51]}  Bf5 {[%clk 0:02:58]} 5. Nc3 {[%clk 0:02:45]}  e6 {[%clk 0:02:57]} 6. Nge2 {[%clk 0:02:35]}  dxc4 {[%clk 0:02:51]} 7. Ng3 {[%clk 0:02:28]}  Bd3 {[%clk 0:02:51]} 8. Bxd3 {[%clk 0:02:26]}  cxd3 {[%clk 0:02:52]} 9. Qxd3 {[%clk 0:02:26]}  Ne7 {[%clk 0:02:51]} 10. O-O {[%clk 0:02:23]}  Nd5 {[%clk 0:02:49]} 11. Nce4 {[%clk 0:02:22]}  Be7 {[%clk 0:02:49]} 12. Nh5 {[%clk 0:01:45]}  g6 {[%clk 0:02:43]} 13. Ng7+ {[%clk 0:01:43]}  Kd7 {[%clk 0:02:36]} 14. Bh6 {[%clk 0:01:43]}  Kc8 {[%clk 0:01:51]} 15. Qf3 {[%clk 0:01:37]}  Qg8 {[%clk 0:01:14]} 16. Rac1 {[%clk 0:01:19]}  Nd7 {[%clk 0:01:08]} 17. b4 {[%clk 0:01:09]}  Bf8 {[%clk 0:01:02]} 18. Nf6 {[%clk 0:00:47]}  N7xf6 {[%clk 0:00:55]} 19. exf6 {[%clk 0:00:48]}  Bxb4 {[%clk 0:00:44]} 20. Rc4 {[%clk 0:00:10]}  Qd8 {[%clk 0:00:39]} 21. Rb1 {[%clk 0:00:08]}  Bd6 {[%clk 0:00:33]} 22. Qb3 {[%clk 0:00:02]}  Ra7 {[%clk 0:00:28]} 23. Bg5 {[%clk 0:00:01]}  h6 {[%clk 0:00:28]} 24. Bh4 {[%clk 0:00:01]}  g5 {[%clk 0:00:28]} 25. Bg3 {[%clk 0:00:01]}  Qxf6 {[%clk 0:00:26]} 26. Nh5 {[%clk 0:00:01]}  Qe7 {[%clk 0:00:25]} 27. Bxd6 {[%clk 0:00:02]}  Qxd6 {[%clk 0:00:26]} 28. Ng3 {[%clk 0:00:03]}  f5 {[%clk 0:00:25]} 29. Qf3 {[%clk 0:00:03]}  Qf4 {[%clk 0:00:20]} 30. Qb3 {[%clk 0:00:03]}  Qc7 {[%clk 0:00:15]} 31. Ne2 {[%clk 0:00:03]}  Rd8 {[%clk 0:00:15]} 32. Nc1 {[%clk 0:00:04]}  Kd7 {[%clk 0:00:14]} 33. Nd3 {[%clk 0:00:04]}  Ke7 {[%clk 0:00:14]} 34. Ne5 {[%clk 0:00:05]}  Kf6 {[%clk 0:00:14]} 35. Rbc1 {[%clk 0:00:05]}  Qe7 {[%clk 0:00:12]} 36. Qh3 {[%clk 0:00:05]}  Kg7 {[%clk 0:00:11]} 37. Qh5 {[%clk 0:00:05]}  Qe8 {[%clk 0:00:11]} 38. Qf3 {[%clk 0:00:06]}  Qe7 {[%clk 0:00:11]} 39. Qg3 {[%clk 0:00:06]}  Qf6 {[%clk 0:00:10]} 40. h4 {[%clk 0:00:06]}  Nf4 {[%clk 0:00:08]} 41. Qf3 {[%clk 0:00:05]}  Nd5 {[%clk 0:00:07]} 42. g3 {[%clk 0:00:05]}  g4 {[%clk 0:00:06]} 43. Qb3 {[%clk 0:00:04]}  h5 {[%clk 0:00:07]} 44. Re1 {[%clk 0:00:04]}  Qe7 {[%clk 0:00:06]} 45. Rc2 {[%clk 0:00:04]}  Nf6 {[%clk 0:00:06]} 46. Rce2 {[%clk 0:00:04]}  Ne4 {[%clk 0:00:07]} 47. Rxe4 {[%clk 0:00:04]}  fxe4 {[%clk 0:00:08]} 48. Rxe4 {[%clk 0:00:04]}  Qf6 {[%clk 0:00:08]} 49. Qe3 {[%clk 0:00:05]}  Rf8 {[%clk 0:00:08]} 50. Nd3 {[%clk 0:00:05]}  Qh6 {[%clk 0:00:08]} 51. Nf4 {[%clk 0:00:05]}  Rf6 {[%clk 0:00:05]} 52. Nxe6+ {[%clk 0:00:05]}  Kh7 {[%clk 0:00:05]} 53. Ng5+ {[%clk 0:00:06]}  Kg8 {[%clk 0:00:05]} 54. Re8+ {[%clk 0:00:06]}  Rf8 {[%clk 0:00:05]} 55. Re7 {[%clk 0:00:07]}  Raa8 {[%clk 0:00:03]} 56. Qb3+ {[%clk 0:00:07]}  Kh8 {[%clk 0:00:03]} 57. Qxb7 {[%clk 0:00:08]}  Rae8 {[%clk 0:00:02]} 58. Rh7+ {[%clk 0:00:08]}  Qxh7 {[%clk 0:00:02]} 59. Qxh7# {[%clk 0:00:08]} 1-0


[Site "https://www.chess.com"]

[Event "Titled Tuesday Blitz March 07 Early 2023"]
[White "Shevtchenko, Olesya"]
[Black "Hambleton, Aman"]
[WhiteFideId "24131890"]
[BlackFideId "2606577"]
[WhiteElo "2003"]
[BlackElo "2511"]
[Result "0-1"]
[Round "01"]
[TimeControl "180+2"]
[Date "2023.03.07"]
[WhiteClock "0:00:21"]
[BlackClock "0:00:25"]

1. e4 {[%clk 0:02:56]}  c5 {[%clk 0:02:58]} 2. Nc3 {[%clk 0:02:55]}  e6 {[%clk 0:02:57]} 3. Nf3 {[%clk 0:02:53]}  Nc6 {[%clk 0:02:57]} 4. Bb5 {[%clk 0:02:52]}  Nge7 {[%clk 0:02:57]} 5. O-O {[%clk 0:02:51]}  a6 {[%clk 0:02:57]} 6. Bxc6 {[%clk 0:02:51]}  Nxc6 {[%clk 0:02:58]} 7. d4 {[%clk 0:02:50]}  cxd4 {[%clk 0:02:59]} 8. Nxd4 {[%clk 0:02:50]}  Be7 {[%clk 0:02:49]} 9. Be3 {[%clk 0:02:49]}  Ne5 {[%clk 0:02:38]} 10. Qe2 {[%clk 0:02:38]}  Qc7 {[%clk 0:02:37]} 11. Nf5 {[%clk 0:02:22]}  exf5 {[%clk 0:01:38]} 12. Nd5 {[%clk 0:02:22]}  Qd6 {[%clk 0:01:39]} 13. Rad1 {[%clk 0:02:13]}  O-O {[%clk 0:01:08]} 14. Nb6 {[%clk 0:02:09]}  Qb8 {[%clk 0:01:06]} 15. exf5 {[%clk 0:02:04]}  d6 {[%clk 0:00:57]} 16. f4 {[%clk 0:01:49]}  Nc6 {[%clk 0:00:55]} 17. g4 {[%clk 0:01:28]}  Re8 {[%clk 0:00:48]} 18. Qf2 {[%clk 0:01:26]}  Bd8 {[%clk 0:00:36]} 19. Nxa8 {[%clk 0:01:22]}  Qxa8 {[%clk 0:00:37]} 20. Rxd6 {[%clk 0:01:19]}  Be7 {[%clk 0:00:35]} 21. Rd2 {[%clk 0:01:15]}  b5 {[%clk 0:00:33]} 22. Re2 {[%clk 0:01:14]}  Bf8 {[%clk 0:00:31]} 23. Rfe1 {[%clk 0:01:13]}  Bb7 {[%clk 0:00:29]} 24. f6 {[%clk 0:01:10]}  gxf6 {[%clk 0:00:27]} 25. Bc5 {[%clk 0:01:05]}  Rxe2 {[%clk 0:00:14]} 26. Rxe2 {[%clk 0:01:06]}  Qc8 {[%clk 0:00:14]} 27. Bxf8 {[%clk 0:01:01]}  Qxg4+ {[%clk 0:00:07]} 28. Kf1 {[%clk 0:00:50]}  Qh3+ {[%clk 0:00:07]} 29. Ke1 {[%clk 0:00:33]}  Kxf8 {[%clk 0:00:07]} 30. Qc5+ {[%clk 0:00:15]}  Kg7 {[%clk 0:00:06]} 31. Qg1+ {[%clk 0:00:11]}  Kh6 {[%clk 0:00:06]} 32. Qb6 {[%clk 0:00:10]}  Qd7 {[%clk 0:00:03]} 33. f5 {[%clk 0:00:10]}  Ne5 {[%clk 0:00:01]} 34. Qe3+ {[%clk 0:00:10]}  Kg7 {[%clk 0:00:02]} 35. Qg3+ {[%clk 0:00:09]}  Kf8 {[%clk 0:00:02]} 36. Rd2 {[%clk 0:00:09]}  Nf3+ {[%clk 0:00:02]} 37. Qxf3 {[%clk 0:00:10]}  Qxd2+ {[%clk 0:00:02]} 38. Kxd2 {[%clk 0:00:09]}  Bxf3 {[%clk 0:00:03]} 39. Ke3 {[%clk 0:00:09]}  Bd1 {[%clk 0:00:04]} 40. c3 {[%clk 0:00:08]}  Bc2 {[%clk 0:00:04]} 41. Kf4 {[%clk 0:00:08]}  Ke7 {[%clk 0:00:05]} 42. b3 {[%clk 0:00:08]}  Kd6 {[%clk 0:00:05]} 43. c4 {[%clk 0:00:08]}  bxc4 {[%clk 0:00:05]} 44. bxc4 {[%clk 0:00:09]}  Kc5 {[%clk 0:00:05]} 45. Kg4 {[%clk 0:00:09]}  Kxc4 {[%clk 0:00:06]} 46. Kh5 {[%clk 0:00:10]}  Bxf5 {[%clk 0:00:06]} 47. Kh6 {[%clk 0:00:11]}  Bb1 {[%clk 0:00:05]} 48. h4 {[%clk 0:00:12]}  Kb4 {[%clk 0:00:06]} 49. h5 {[%clk 0:00:13]}  Ka3 {[%clk 0:00:06]} 50. Kg7 {[%clk 0:00:14]}  Kxa2 {[%clk 0:00:07]} 51. h6 {[%clk 0:00:14]}  a5 {[%clk 0:00:07]} 52. Kh8 {[%clk 0:00:15]}  a4 {[%clk 0:00:08]} 53. Kg7 {[%clk 0:00:16]}  a3 {[%clk 0:00:09]} 54. Kg8 {[%clk 0:00:17]}  Kb3 {[%clk 0:00:10]} 55. Kg7 {[%clk 0:00:18]}  Bd3 {[%clk 0:00:10]} 56. Kg8 {[%clk 0:00:19]}  Kc2 {[%clk 0:00:11]} 57. Kg7 {[%clk 0:00:18]}  Kd1 {[%clk 0:00:12]} 58. Kh8 {[%clk 0:00:19]}  Ke2 {[%clk 0:00:13]} 59. Kg8 {[%clk 0:00:20]}  a2 {[%clk 0:00:14]} 60. Kg7 {[%clk 0:00:21]}  Kf3 {[%clk 0:00:15]} 61. Kg8 {[%clk 0:00:22]}  Kg4 {[%clk 0:00:16]} 62. Kh8 {[%clk 0:00:22]}  Kh5 {[%clk 0:00:17]} 63. Kg7 {[%clk 0:00:22]}  Kg5 {[%clk 0:00:17]} 64. Kh8 {[%clk 0:00:22]}  Kxh6 {[%clk 0:00:17]} 65. Kg8 {[%clk 0:00:23]}  Kg5 {[%clk 0:00:17]} 66. Kg7 {[%clk 0:00:23]}  h5 {[%clk 0:00:18]} 67. Kh8 {[%clk 0:00:23]}  h4 {[%clk 0:00:19]} 68. Kg7 {[%clk 0:00:24]}  h3 {[%clk 0:00:20]} 69. Kg8 {[%clk 0:00:25]}  h2 {[%clk 0:00:21]} 70. Kg7 {[%clk 0:00:25]}  Bf1 {[%clk 0:00:22]} 71. Kg8 {[%clk 0:00:25]}  f5 {[%clk 0:00:23]} 72. Kg7 {[%clk 0:00:26]}  f4 {[%clk 0:00:24]} 73. Kg8 {[%clk 0:00:21]}  f3 {[%clk 0:00:25]} 74. Kg7 {[%clk 0:00:22]}  f2 {[%clk 0:00:26]} 75. Kg8 {[%clk 0:00:22]}  f5 {[%clk 0:00:26]} 76. Kg7 {[%clk 0:00:23]}  f4 {[%clk 0:00:27]} 77. Kg8 {[%clk 0:00:24]}  f3 {[%clk 0:00:27]} 78. Kg7 {[%clk 0:00:25]}  Kf4 {[%clk 0:00:28]} 79. Kg8 {[%clk 0:00:26]}  Bc4+ {[%clk 0:00:27]} 80. Kg7 {[%clk 0:00:27]}  a1=B+ {[%clk 0:00:26]} 81. Kg6 {[%clk 0:00:26]}  Kg4 {[%clk 0:00:24]} 82. Kh6 {[%clk 0:00:27]}  f1=N {[%clk 0:00:21]} 83. Kg6 {[%clk 0:00:28]}  f2 {[%clk 0:00:19]} 84. Kh6 {[%clk 0:00:29]}  Nd2 {[%clk 0:00:18]} 85. Kg6 {[%clk 0:00:30]}  Nb1 {[%clk 0:00:18]} 86. Kh6 {[%clk 0:00:31]}  Nc3 {[%clk 0:00:18]} 87. Kg6 {[%clk 0:00:32]}  h1=Q {[%clk 0:00:16]} 88. Kg7 {[%clk 0:00:32]}  Qh8+ {[%clk 0:00:16]} 89. Kxh8 {[%clk 0:00:30]}  f1=Q {[%clk 0:00:15]} 90. Kg7 {[%clk 0:00:30]}  Qf6+ {[%clk 0:00:15]} 91. Kxf6 {[%clk 0:00:31]}  Kf4 {[%clk 0:00:15]} 92. Kg6 {[%clk 0:00:30]}  Bf7+ {[%clk 0:00:15]} 93. Kf6 {[%clk 0:00:31]}  Ne4+ {[%clk 0:00:14]} 94. Kxf7 {[%clk 0:00:31]}  Kf5 {[%clk 0:00:14]} 95. Ke7 {[%clk 0:00:32]}  Ke5 {[%clk 0:00:13]} 96. Kf7 {[%clk 0:00:31]}  Nd6+ {[%clk 0:00:13]} 97. Ke7 {[%clk 0:00:32]}  Bd4 {[%clk 0:00:14]} 98. Kd7 {[%clk 0:00:32]}  Kd5 {[%clk 0:00:14]} 99. Ke7 {[%clk 0:00:32]}  Be5 {[%clk 0:00:15]} 100. Kd7 {[%clk 0:00:32]}  Bf6 {[%clk 0:00:15]} 101. Kc7 {[%clk 0:00:33]}  Nc4 {[%clk 0:00:15]} 102. Kb7 {[%clk 0:00:33]}  Kc5 {[%clk 0:00:14]} 103. Ka6 {[%clk 0:00:33]}  Nb6 {[%clk 0:00:14]} 104. Ka5 {[%clk 0:00:32]}  Bc3+ {[%clk 0:00:14]} 105. Ka6 {[%clk 0:00:33]}  Kc6 {[%clk 0:00:14]} 106. Ka7 {[%clk 0:00:33]}  Be5 {[%clk 0:00:15]} 107. Ka6 {[%clk 0:00:33]}  Bb8 {[%clk 0:00:16]} 108. Ka5 {[%clk 0:00:34]}  Nd5 {[%clk 0:00:17]} 109. Ka4 {[%clk 0:00:34]}  Kc5 {[%clk 0:00:18]} 110. Kb3 {[%clk 0:00:35]}  Nb4 {[%clk 0:00:18]} 111. Kb2 {[%clk 0:00:36]}  Bf4 {[%clk 0:00:19]} 112. Kc3 {[%clk 0:00:33]}  Be3 {[%clk 0:00:19]} 113. Kb3 {[%clk 0:00:33]}  Bd2 {[%clk 0:00:18]} 114. Ka3 {[%clk 0:00:31]}  Kc4 {[%clk 0:00:19]} 115. Ka4 {[%clk 0:00:31]}  Bc1 {[%clk 0:00:17]} 116. Ka5 {[%clk 0:00:31]}  Be3 {[%clk 0:00:18]} 117. Ka4 {[%clk 0:00:31]}  Bb6 {[%clk 0:00:19]} 118. Ka3 {[%clk 0:00:32]}  Nd3 {[%clk 0:00:19]} 119. Ka4 {[%clk 0:00:31]}  Nb2+ {[%clk 0:00:19]} 120. Ka3 {[%clk 0:00:30]}  Kc3 {[%clk 0:00:20]} 121. Ka2 {[%clk 0:00:30]}  Kc2 {[%clk 0:00:21]} 122. Ka3 {[%clk 0:00:30]}  Bc5+ {[%clk 0:00:22]} 123. Ka2 {[%clk 0:00:19]}  Bb4 {[%clk 0:00:23]} 124. Ka1 {[%clk 0:00:19]}  Nd3 {[%clk 0:00:24]} 125. Ka2 {[%clk 0:00:20]}  Nc1+ {[%clk 0:00:24]} 126. Ka1 {[%clk 0:00:21]}  Bc3# {[%clk 0:00:25]} 0-1


[Site "https://www.chess.com"]

[Event "Titled Tuesday Blitz March 07 Early 2023"]
[White "Lorparizangeneh, Shahin"]
[Black "Real_taiatai"]
[WhiteFideId "12521604"]
[WhiteElo "2526"]
[BlackElo "2413"]
[Result "1-0"]
[Round "01"]
[TimeControl "180+2"]
[Date "2023.03.07"]
[WhiteClock "0:00:21"]
[BlackClock "0:00:16"]

1. e4 {[%clk 0:02:59]}  c5 {[%clk 0:02:59]} 2. Nf3 {[%clk 0:02:59]}  Nc6 {[%clk 0:03:00]} 3. d4 {[%clk 0:02:59]}  cxd4 {[%clk 0:03:01]} 4. Nxd4 {[%clk 0:03:00]}  e5 {[%clk 0:03:01]} 5. Nb5 {[%clk 0:02:58]}  d6 {[%clk 0:03:02]} 6. c4 {[%clk 0:02:54]}  a6 {[%clk 0:02:55]} 7. N5c3 {[%clk 0:02:55]}  Nf6 {[%clk 0:02:45]} 8. Be2 {[%clk 0:02:52]}  g6 {[%clk 0:02:45]} 9. O-O {[%clk 0:02:52]}  Bg7 {[%clk 0:02:46]} 10. Be3 {[%clk 0:02:41]}  O-O {[%clk 0:02:43]} 11. Na3 {[%clk 0:02:37]}  Be6 {[%clk 0:02:38]} 12. Nc2 {[%clk 0:02:34]}  Rc8 {[%clk 0:02:18]} 13. Qd3 {[%clk 0:02:31]}  Qe7 {[%clk 0:02:14]} 14. Nd5 {[%clk 0:02:24]}  Bxd5 {[%clk 0:02:12]} 15. cxd5 {[%clk 0:02:23]}  Nb8 {[%clk 0:02:06]} 16. Na3 {[%clk 0:02:16]}  Nbd7 {[%clk 0:02:03]} 17. b4 {[%clk 0:02:12]}  h5 {[%clk 0:01:45]} 18. h3 {[%clk 0:02:04]}  Nh7 {[%clk 0:01:34]} 19. Rac1 {[%clk 0:01:56]}  Qh4 {[%clk 0:01:30]} 20. Nc4 {[%clk 0:01:50]}  Qe7 {[%clk 0:01:17]} 21. Na5 {[%clk 0:01:49]}  Ndf6 {[%clk 0:01:11]} 22. a4 {[%clk 0:01:39]}  Nxe4 {[%clk 0:00:22]} 23. Qxe4 {[%clk 0:01:35]}  f5 {[%clk 0:00:23]} 24. Qb1 {[%clk 0:01:29]}  f4 {[%clk 0:00:23]} 25. Bb6 {[%clk 0:01:21]}  e4 {[%clk 0:00:24]} 26. Rxc8 {[%clk 0:01:18]}  Rxc8 {[%clk 0:00:24]} 27. Rc1 {[%clk 0:01:17]}  Rf8 {[%clk 0:00:25]} 28. Rc7 {[%clk 0:01:13]}  Qe5 {[%clk 0:00:25]} 29. Rxb7 {[%clk 0:01:08]}  Ng5 {[%clk 0:00:25]} 30. Nc6 {[%clk 0:01:09]}  Qc3 {[%clk 0:00:21]} 31. h4 {[%clk 0:00:46]}  f3 {[%clk 0:00:20]} 32. Bxa6 {[%clk 0:00:14]}  fxg2 {[%clk 0:00:19]} 33. Rxg7+ {[%clk 0:00:15]}  Kxg7 {[%clk 0:00:18]} 34. Bd4+ {[%clk 0:00:14]}  Qxd4 {[%clk 0:00:18]} 35. Nxd4 {[%clk 0:00:15]}  Nh3+ {[%clk 0:00:17]} 36. Kxg2 {[%clk 0:00:15]}  Nf4+ {[%clk 0:00:17]} 37. Kg3 {[%clk 0:00:16]}  g5 {[%clk 0:00:16]} 38. Ne6+ {[%clk 0:00:15]}  Nxe6 {[%clk 0:00:16]} 39. dxe6 {[%clk 0:00:16]}  Rf3+ {[%clk 0:00:16]} 40. Kg2 {[%clk 0:00:16]}  Rf4 {[%clk 0:00:16]} 41. Qb2+ {[%clk 0:00:16]}  Kf8 {[%clk 0:00:16]} 42. hxg5 {[%clk 0:00:17]}  Ke7 {[%clk 0:00:15]} 43. Qf6+ {[%clk 0:00:17]}  Rxf6 {[%clk 0:00:15]} 44. gxf6+ {[%clk 0:00:18]}  Kxe6 {[%clk 0:00:16]} 45. Bc4+ {[%clk 0:00:19]}  Kxf6 {[%clk 0:00:16]} 46. a5 {[%clk 0:00:20]}  d5 {[%clk 0:00:16]} 47. Bxd5 {[%clk 0:00:20]}  Ke5 {[%clk 0:00:16]} 48. Bxe4 {[%clk 0:00:20]}  Kxe4 {[%clk 0:00:16]} 49. a6 {[%clk 0:00:21]} 1-0


[Site "https://www.chess.com"]

[Event "Titled Tuesday Blitz March 07 Early 2023"]
[White "Zherebtsova, Alexandra"]
[Black "Atakhan, Abtin"]
[WhiteFideId "24129518"]
[BlackFideId "22502203"]
[WhiteElo "2055"]
[BlackElo "2008"]
[Result "0-1"]
[Round "01"]
[TimeControl "180+2"]
[Date "2023.03.07"]
[WhiteClock "0:00:13"]
[BlackClock "0:00:45"]

1. d4 {[%clk 0:02:58]}  Nf6 {[%clk 0:03:00]} 2. Nf3 {[%clk 0:02:59]}  d5 {[%clk 0:03:00]} 3. c4 {[%clk 0:02:59]}  e6 {[%clk 0:03:00]} 4. e3 {[%clk 0:02:59]}  b6 {[%clk 0:02:59]} 5. Nbd2 {[%clk 0:02:59]}  Bb7 {[%clk 0:02:59]} 6. b3 {[%clk 0:02:59]}  Bd6 {[%clk 0:03:00]} 7. Bb2 {[%clk 0:03:00]}  O-O {[%clk 0:03:00]} 8. Bd3 {[%clk 0:03:00]}  Nbd7 {[%clk 0:02:57]} 9. O-O {[%clk 0:03:00]}  a6 {[%clk 0:02:58]} 10. Ne5 {[%clk 0:03:00]}  c5 {[%clk 0:02:56]} 11. Qe2 {[%clk 0:03:00]}  Qc7 {[%clk 0:02:52]} 12. f4 {[%clk 0:02:59]}  Ne4 {[%clk 0:02:47]} 13. cxd5 {[%clk 0:02:35]}  exd5 {[%clk 0:02:43]} 14. Rac1 {[%clk 0:02:25]}  Nxd2 {[%clk 0:02:39]} 15. Qxd2 {[%clk 0:02:24]}  f6 {[%clk 0:02:35]} 16. Nxd7 {[%clk 0:02:14]}  Qxd7 {[%clk 0:02:36]} 17. dxc5 {[%clk 0:02:14]}  bxc5 {[%clk 0:02:33]} 18. Bb1 {[%clk 0:02:13]}  Rfe8 {[%clk 0:02:26]} 19. Qd3 {[%clk 0:02:11]}  Re4 {[%clk 0:02:19]} 20. Qd2 {[%clk 0:02:09]}  Re7 {[%clk 0:02:12]} 21. Qd3 {[%clk 0:02:09]}  Re4 {[%clk 0:02:00]} 22. Qd2 {[%clk 0:02:09]}  Rae8 {[%clk 0:01:52]} 23. Bxe4 {[%clk 0:02:06]}  Rxe4 {[%clk 0:01:52]} 24. Ba3 {[%clk 0:01:55]}  Qe7 {[%clk 0:01:45]} 25. Rfe1 {[%clk 0:01:42]}  d4 {[%clk 0:01:34]} 26. exd4 {[%clk 0:01:38]}  Bxf4 {[%clk 0:01:34]} 27. Qf2 {[%clk 0:00:20]}  Bxc1 {[%clk 0:01:26]} 28. Rxe4 {[%clk 0:00:20]}  Qxe4 {[%clk 0:01:24]} 29. Bxc1 {[%clk 0:00:20]}  cxd4 {[%clk 0:01:23]} 30. Qd2 {[%clk 0:00:18]}  d3 {[%clk 0:01:12]} 31. Bb2 {[%clk 0:00:19]}  Qg6 {[%clk 0:01:05]} 32. h3 {[%clk 0:00:18]}  Bxg2 {[%clk 0:01:05]} 33. Kh2 {[%clk 0:00:16]}  Bd5 {[%clk 0:01:01]} 34. Qf2 {[%clk 0:00:16]}  Qe4 {[%clk 0:01:00]} 35. Bd4 {[%clk 0:00:14]}  h5 {[%clk 0:00:53]} 36. h4 {[%clk 0:00:14]}  Qg4 {[%clk 0:00:51]} 37. Bb2 {[%clk 0:00:13]}  Qd1 {[%clk 0:00:46]} 38. Kg3 {[%clk 0:00:13]}  d2 {[%clk 0:00:45]} 0-1


[Site "https://www.chess.com"]

[Event "Titled Tuesday Blitz March 07 Early 2023"]
[White "Mahdavi, Reza"]
[Black "Chan, Kim Yew"]
[WhiteFideId "12595926"]
[BlackFideId "5717981"]
[WhiteElo "2208"]
[BlackElo "2206"]
[Result "1-0"]
[Round "01"]
[TimeControl "180+2"]
[Date "2023.03.07"]
[WhiteClock "0:01:17"]
[BlackClock "0:00:10"]

1. Nf3 {[%clk 0:03:00]}  c5 {[%clk 0:03:00]} 2. c4 {[%clk 0:03:00]}  Nf6 {[%clk 0:02:58]} 3. g3 {[%clk 0:03:00]}  e6 {[%clk 0:02:57]} 4. Bg2 {[%clk 0:03:00]}  d5 {[%clk 0:02:55]} 5. d4 {[%clk 0:02:58]}  Nc6 {[%clk 0:02:39]} 6. O-O {[%clk 0:02:44]}  dxc4 {[%clk 0:02:30]} 7. Qa4 {[%clk 0:02:43]}  Bd7 {[%clk 0:02:30]} 8. Qxc4 {[%clk 0:02:38]}  b5 {[%clk 0:02:30]} 9. Qd3 {[%clk 0:02:36]}  c4 {[%clk 0:02:28]} 10. Qc2 {[%clk 0:02:36]}  Rc8 {[%clk 0:02:23]} 11. e4 {[%clk 0:02:34]}  Be7 {[%clk 0:02:18]} 12. Qe2 {[%clk 0:02:33]}  O-O {[%clk 0:02:16]} 13. Rd1 {[%clk 0:02:34]}  Nb4 {[%clk 0:02:02]} 14. Ne5 {[%clk 0:02:34]}  Be8 {[%clk 0:01:52]} 15. a3 {[%clk 0:02:25]}  Nc6 {[%clk 0:01:51]} 16. Nxc6 {[%clk 0:02:14]}  Rxc6 {[%clk 0:01:36]} 17. d5 {[%clk 0:02:10]}  exd5 {[%clk 0:01:37]} 18. exd5 {[%clk 0:02:11]}  Ra6 {[%clk 0:01:19]} 19. Nc3 {[%clk 0:02:02]}  Bc5 {[%clk 0:01:17]} 20. Bg5 {[%clk 0:01:59]}  h6 {[%clk 0:01:16]} 21. Ne4 {[%clk 0:01:51]}  Be7 {[%clk 0:01:03]} 22. Be3 {[%clk 0:01:44]}  Nxe4 {[%clk 0:00:58]} 23. Bxe4 {[%clk 0:01:45]}  Bd6 {[%clk 0:00:54]} 24. Bd4 {[%clk 0:01:38]}  Bd7 {[%clk 0:00:43]} 25. Bc2 {[%clk 0:01:29]}  Re8 {[%clk 0:00:38]} 26. Qf3 {[%clk 0:01:30]}  Qg5 {[%clk 0:00:32]} 27. Re1 {[%clk 0:01:26]}  b4 {[%clk 0:00:15]} 28. Rxe8+ {[%clk 0:01:24]}  Bxe8 {[%clk 0:00:15]} 29. Qe4 {[%clk 0:01:25]}  Bd7 {[%clk 0:00:09]} 30. Qh7+ {[%clk 0:01:23]}  Kf8 {[%clk 0:00:10]} 31. Re1 {[%clk 0:01:17]} 1-0


[Site "https://www.chess.com"]